fUSD/lending_fUSD_20240104
["ID","MTS","AMOUNT","RATE_DAILY","PERIOD"]
[310142618,1704383454543,-944.61,0.0003315,2]
[310142619,1704383454552,-500.0,0.0003315,2]
[310142620,1704383454562,-1757.32,0.0003315,2]
[310142621,1704383454571,-500.0,0.0003315,2]
[310142622,1704383454580,-2621.71,0.0003315,2]
[310142623,1704383454589,-1401.22,0.0003315,2]
[310142624,1704383454599,-500.0,0.0003315,2]
[310142625,1704383454610,-500.0,0.0003315,2]
[310142626,1704383454619,-500.0,0.0003315,2]
[310142627,1704383454628,-500.0,0.0003315,2]
[310142628,1704383454638,-1732.27,0.0003315,2]
[310142629,1704383454646,-500.0,0.0003315,2]
[310142630,1704383454656,-649.50786939,0.0003315,2]
[310142631,1704383454665,-639.42,0.0003315,2]
[310142632,1704383454674,-1256.69,0.0003315,2]
[310142633,1704383454683,-500.0,0.0003315,2]
[310142634,1704383454693,-1094.07,0.0003315,2]
[310142635,1704383454702,-265.59227974,0.0003315,2]
[310142636,1704383454712,-500.0,0.0003315,2]
[310142637,1704383454722,-500.0,0.0003315,2]
[310142638,1704383454731,-500.0,0.0003315,2]
[310142639,1704383454741,-500.0,0.0003315,2]
[310142640,1704383454750,-1570.56,0.0003315,2]
[310142641,1704383454759,-500.0,0.0003315,2]
[310142642,1704383454768,-500.0,0.0003315,2]
[310142643,1704383454777,-739.39,0.0003315,2]
[310142644,1704383454786,-500.0,0.0003315,2]
[310142645,1704383454796,-529.45,0.0003315,2]
[310142646,1704383454805,-1059.98,0.0003315,2]
[310142647,1704383454816,-1294.14,0.0003315,2]
[310142648,1704383454826,-500.0,0.0003315,2]
[310142649,1704383454838,-500.0,0.0003315,2]
[310142650,1704383454849,-574.31,0.0003315,2]
[310142651,1704383454859,-500.0,0.0003315,2]
[310142652,1704383454869,-500.0,0.0003315,2]
[310142653,1704383454879,-1661.09,0.0003315,2]
[310142654,1704383454889,-500.0,0.0003315,2]
[310142655,1704383454898,-582.97,0.0003315,2]
[310142656,1704383454907,-1488.44,0.0003315,2]
[310142657,1704383454918,-500.0,0.0003315,2]
[310142658,1704383454927,-500.0,0.0003315,2]
[310142659,1704383454937,-500.0,0.0003315,2]
[310142660,1704383454947,-576.77,0.0003315,2]
[310142661,1704383454957,-500.0,0.0003315,2]
[310142662,1704383454966,-879.94,0.0003315,2]
[310142663,1704383454976,-500.0,0.0003315,2]
[310142664,1704383454985,-539.04,0.0003315,2]
[310142665,1704383454994,-1530.35,0.0003315,2]
[310142666,1704383455003,-1484.45,0.0003315,2]
[310142667,1704383455013,-500.0,0.0003315,2]
[310142668,1704383455024,-512.24,0.0003315,2]
[310142669,1704383455035,-1403.56,0.0003315,2]
[310142670,1704383455045,-545.95,0.0003315,2]
[310142671,1704383455056,-500.0,0.0003315,2]
[310142672,1704383455066,-611.8,0.0003315,2]
[310142673,1704383455075,-500.0,0.0003315,2]
[310142674,1704383455085,-601.29,0.0003315,2]
[310142675,1704383455095,-630.38,0.0003315,2]
[310142676,1704383455105,-2049.38,0.0003315,2]
[310142677,1704383455114,-500.0,0.0003315,2]
[310142678,1704383455124,-1841.82,0.0003315,2]
[310142679,1704383455133,-500.0,0.0003315,2]
[310142680,1704383455143,-500.0,0.0003315,2]
[310142681,1704383455153,-500.0,0.0003315,2]
[310142682,1704383455162,-500.0,0.0003315,2]
[310142683,1704383455172,-500.0,0.0003315,2]
[310142684,1704383455181,-1046.26,0.0003315,2]
[310142685,1704383455191,-228.35683724,0.0003315,2]
[310142686,1704383455200,-1497.34,0.0003315,2]
[310142687,1704383455210,-951.22,0.0003315,2]
[310142688,1704383455219,-735.25,0.0003315,2]
[310142689,1704383455228,-527.14,0.0003315,2]
[310142690,1704383455238,-1733.0,0.0003315,2]
[310142691,1704383455247,-643.52,0.0003315,2]
[310142692,1704383455257,-500.0,0.0003315,2]
[310142693,1704383455266,-822.39,0.0003315,2]
[310142694,1704383455275,-500.0,0.0003315,2]
[310142695,1704383455284,-2670.57,0.0003315,2]
[310142696,1704383455293,-500.0,0.0003315,2]
[310142697,1704383455303,-500.0,0.0003315,2]
[310142698,1704383455312,-500.0,0.0003315,2]
[310142699,1704383455322,-3284.99,0.0003315,2]
[310142700,1704383455331,-1166.26,0.0003315,2]
[310142701,1704383455341,-500.0,0.0003315,2]
[310142702,1704383455350,-500.0,0.0003315,2]
[310142703,1704383455361,-500.0,0.0003315,2]
[310142704,1704383455371,-971.98,0.0003315,2]
[310142705,1704383455380,-500.0,0.0003315,2]
[310142706,1704383455388,-500.0,0.0003315,2]
[310142707,1704383455397,-1694.73,0.0003315,2]
[310142708,1704383455406,-685.61,0.0003315,2]
[310142709,1704383455416,-2075.81,0.0003315,2]
[310142710,1704383455425,-500.0,0.0003315,2]
[310142711,1704383455435,-1125.46,0.0003315,2]
[310142712,1704383455444,-526.4,0.0003315,2]
[310142713,1704383455453,-500.0,0.0003315,2]
[310142714,1704383455462,-1396.04,0.0003315,2]
[310142715,1704383455472,-500.0,0.0003315,2]
[310142716,1704383455481,-1060.35,0.0003315,2]
[310142717,1704383455490,-540.44,0.0003315,2]
[310142718,1704383455500,-3215.96,0.0003315,2]
[310142719,1704383455509,-500.0,0.0003315,2]
[310142720,1704383455520,-781.26,0.0003315,2]
[310142721,1704383455529,-500.0,0.0003315,2]
[310142722,1704383455538,-558.12,0.0003315,2]
[310142723,1704383455548,-500.0,0.0003315,2]
[310142724,1704383455558,-1237.67,0.0003315,2]
[310142725,1704383455567,-1191.58,0.0003315,2]
[310142726,1704383455576,-525.09,0.0003315,2]
[310142727,1704383455586,-1747.39,0.0003315,2]
[310142728,1704383455595,-500.0,0.0003315,2]
[310142729,1704383455605,-1747.57,0.0003315,2]
[310142730,1704383455614,-4274.46,0.0003315,2]
[310142731,1704383455624,-500.0,0.0003315,2]
[310142732,1704383455634,-2793.34,0.0003315,2]
[310142733,1704383455643,-973.72,0.0003315,2]
[310142734,1704383455652,-181.56,0.0003315,2]
[310142735,1704383455661,-500.0,0.0003315,2]
[310142736,1704383455671,-1118.87,0.0003315,2]
[310142737,1704383455680,-500.0,0.0003315,2]
[310142738,1704383455690,-684.1,0.0003315,2]
[310142739,1704383455699,-500.0,0.0003315,2]
[310142740,1704383455708,-500.0,0.0003315,2]
[310142741,1704383455717,-521.83,0.0003315,2]
[310142742,1704383455726,-500.0,0.0003315,2]
[310142743,1704383455736,-676.82,0.0003315,2]
[310142744,1704383455746,-500.0,0.0003315,2]
[310142745,1704383455756,-2388.72,0.0003315,2]
[310142746,1704383455765,-1361.8,0.0003315,2]
[310142747,1704383455774,-500.0,0.0003315,2]
[310142748,1704383455784,-998.02,0.0003315,2]
[310142749,1704383455793,-500.0,0.0003315,2]
[310142750,1704383455803,-243.67859747,0.0003315,2]
[310142751,1704383455814,-500.0,0.0003315,2]
[310142752,1704383455824,-699.11,0.0003315,2]
[310142753,1704383455835,-522.55,0.0003315,2]
[310142754,1704383455844,-841.57,0.0003315,2]
[310142755,1704383455857,-2977.6,0.0003315,2]
[310142756,1704383455867,-658.31,0.0003315,2]
[310142757,1704383455876,-612.09,0.0003315,2]
[310142758,1704383455886,-500.0,0.0003315,2]
[310142759,1704383455896,-1411.68,0.0003315,2]
[310142760,1704383455905,-998.22,0.0003315,2]
[310142761,1704383455915,-600.0,0.0003315,2]
[310142762,1704383455924,-1262.99,0.0003315,2]
[310142763,1704383455933,-4333.35,0.0003315,2]
[310142764,1704383455942,-500.0,0.0003315,2]
[310142765,1704383455952,-550.75,0.0003315,2]
[310142766,1704383455961,-500.0,0.0003315,2]
[310142767,1704383455970,-706.18,0.0003315,2]
[310142768,1704383455980,-667.37,0.0003315,2]
[310142769,1704383455989,-500.0,0.0003315,2]
[310142770,1704383456000,-3014.21,0.0003315,2]
[310142771,1704383456009,-1018.2,0.0003315,2]
[310142772,1704383456021,-500.0,0.0003315,2]
[310142773,1704383456031,-693.16,0.0003315,2]
[310142774,1704383456040,-1362.23,0.0003315,2]
[310142775,1704383456051,-2995.33,0.0003315,2]
[310142776,1704383456061,-500.0,0.0003315,2]
[310142777,1704383456070,-500.0,0.0003315,2]
[310142778,1704383456080,-500.0,0.0003315,2]
[310142779,1704383456090,-597.48,0.0003315,2]
[310142780,1704383456100,-854.33,0.0003315,2]
[310142781,1704383456112,-1324.64,0.0003315,2]
[310142782,1704383456122,-816.81,0.0003315,2]
[310142783,1704383456131,-555.41,0.0003315,2]
[310142784,1704383456141,-500.0,0.0003315,2]
[310142785,1704383456151,-500.0,0.0003315,2]
[310142786,1704383456160,-599.52,0.0003315,2]
[310142787,1704383456170,-500.0,0.0003315,2]
[310142788,1704383456180,-1309.57,0.0003315,2]
[310142789,1704383456190,-1268.47,0.0003315,2]
[310142790,1704383456200,-500.0,0.0003315,2]
[310142791,1704383456210,-1030.82,0.0003315,2]
[310142792,1704383456220,-8961.73,0.0003315,2]
[310142793,1704383456385,-1547.75,0.0003315,2]
[310142794,1704383456395,-832.48,0.0003315,2]
[310142795,1704383456405,-2868.4,0.0003315,2]
[310142796,1704383456414,-500.0,0.0003315,2]
[310142797,1704383456423,-500.0,0.0003315,2]
[310142798,1704383456433,-1262.46,0.0003315,2]
[310142799,1704383456443,-500.0,0.0003315,2]
[310142800,1704383456452,-500.0,0.0003315,2]
[310142801,1704383456462,-6572.59,0.0003315,2]
[310142802,1704383456471,-569.73,0.0003315,2]
[310142803,1704383456481,-593.34,0.0003315,2]
[310142804,1704383456491,-4284.47,0.0003315,2]
[310142805,1704383456500,-500.0,0.0003315,2]
[310142806,1704383456510,-918.99,0.0003315,2]
[310142807,1704383456519,-11824.09,0.0003315,2]
[310142808,1704383456528,-500.0,0.0003315,2]
[310142809,1704383456538,-1528.9,0.0003315,2]
[310142810,1704383456547,-839.12,0.0003315,2]
[310142811,1704383456558,-500.0,0.0003315,2]
[310142812,1704383456567,-626.51,0.0003315,2]
[310142813,1704383456577,-512.9,0.0003315,2]
[310142814,1704383456587,-500.0,0.0003315,2]
[310142815,1704383456596,-815.35,0.0003315,2]
[310142816,1704383456606,-722.14,0.0003315,2]
[310142817,1704383456615,-1946.58,0.0003315,2]
[310142818,1704383456625,-988.65,0.0003315,2]
[310142819,1704383456634,-25969.53,0.0003315,2]
[310142820,1704383456644,-500.0,0.0003315,2]
[310142821,1704383456653,-2402.27,0.0003315,2]
[310142822,1704383456662,-2320.41,0.0003315,2]
[310142823,1704383456671,-500.0,0.0003315,2]
[310142824,1704383456681,-1013.95,0.0003315,2]
[310142825,1704383456690,-631.59,0.0003315,2]
[310142826,1704383456700,-871.23,0.0003315,2]
[310142827,1704383456709,-500.0,0.0003315,2]
[310142828,1704383456718,-1333.9,0.0003315,2]
[310142829,1704383456727,-500.0,0.0003315,2]
[310142830,1704383456737,-14205.53,0.0003315,2]
[310142831,1704383456747,-500.0,0.0003315,2]
[310142832,1704383456756,-1593.12,0.0003315,2]
[310142833,1704383456765,-835.86,0.0003315,2]
[310142834,1704383456775,-500.0,0.0003315,2]
[310142835,1704383456785,-586.95,0.0003315,2]
[310142836,1704383456794,-1058.98,0.0003315,2]
[310142837,1704383456803,-598.66376447,0.0003315,2]
[310142838,1704383456812,-500.0,0.0003315,2]
[310142839,1704383456822,-1481.66,0.0003315,2]
[310142840,1704383456831,-500.0,0.0003315,2]
[310142841,1704383456843,-684.9,0.0003315,2]
[310142842,1704383456852,-150.29357253,0.0003315,2]
[310142843,1704383456863,-500.0,0.0003315,2]
[310142844,1704383456873,-10274.33,0.0003315,2]
[310142845,1704383456883,-1140.38,0.0003315,2]
[310142846,1704383456892,-596.7,0.0003315,2]
[310142847,1704383456902,-500.0,0.0003315,2]
[310142848,1704383456911,-5311.22,0.0003315,2]
[310142849,1704383456921,-500.0,0.0003315,2]
[310142850,1704383456931,-1489.0,0.0003315,2]
[310142851,1704383456941,-500.0,0.0003315,2]
[310142852,1704383456951,-1020.8,0.0003315,2]
[310142853,1704383456961,-500.0,0.0003315,2]
[310142854,1704383456971,-708.19,0.0003315,2]
[310142855,1704383456981,-1641.33,0.0003315,2]
[310142856,1704383456990,-500.0,0.0003315,2]
[310142857,1704383457000,-1563.54,0.0003315,2]
[310142858,1704383457010,-4689.3,0.0003315,2]
[310142859,1704383457020,-381.05037113,0.0003315,2]
[310142860,1704383457030,-3501.75,0.0003315,2]
[310142861,1704383457041,-1821.71,0.0003315,2]
[310142862,1704383457051,-581.11,0.0003315,2]
[310142863,1704383457060,-1520.64,0.0003315,2]
[310142864,1704383457070,-917.4,0.0003315,2]
[310142865,1704383457079,-500.0,0.0003315,2]
[310142866,1704383457090,-1132.36,0.0003315,2]
[310142867,1704383457099,-611.97,0.0003315,2]
[310142868,1704383457110,-911.8,0.0003315,2]
[310142869,1704383457120,-980.64,0.0003315,2]
[310142870,1704383457130,-512.76,0.0003315,2]
[310142871,1704383457140,-500.0,0.0003315,2]
[310142872,1704383457150,-500.0,0.0003315,2]
[310142873,1704383457160,-500.0,0.0003315,2]
[310142874,1704383457169,-611.41,0.0003315,2]
[310142875,1704383457180,-3660.07,0.0003315,2]
[310142876,1704383457190,-758.21,0.0003315,2]
[310142877,1704383457200,-500.0,0.0003315,2]
[310142878,1704383457210,-4379.2,0.0003315,2]
[310142879,1704383457219,-741.69,0.0003315,2]
[310142880,1704383457229,-500.0,0.0003315,2]
[310142881,1704383457238,-2326.77,0.0003315,2]
[310142882,1704383457248,-1104.09,0.0003315,2]
[310142883,1704383457258,-500.0,0.0003315,2]
[310142884,1704383457267,-500.0,0.0003315,2]
[310142885,1704383457278,-1962.91,0.0003315,2]
[310142886,1704383457289,-1792.29,0.0003315,2]
[310142887,1704383457299,-500.0,0.0003315,2]
[310142888,1704383457310,-20208.69,0.0003315,2]
[310142889,1704383457320,-1258.81,0.0003315,2]
[310142890,1704383457329,-500.0,0.0003315,2]
[310142891,1704383457343,-500.0,0.0003315,2]
[310142892,1704383457354,-765.42,0.0003315,2]
[310142893,1704383457364,-3848.58,0.0003315,2]
[310142894,1704383457373,-2574.21,0.0003315,2]
[310142895,1704383457382,-879.94,0.0003315,2]
[310142896,1704383457391,-764.06,0.0003315,2]
[310142897,1704383457401,-500.0,0.0003315,2]
[310142898,1704383457411,-500.0,0.0003315,2]
[310142899,1704383457421,-500.0,0.0003315,2]
[310142900,1704383457430,-500.0,0.0003315,2]
[310142901,1704383457441,-2186.2,0.0003315,2]
[310142902,1704383457450,-8578.01,0.0003315,2]
[310142903,1704383457459,-706.9,0.0003315,2]
[310142904,1704383457469,-500.0,0.0003315,2]
[310142905,1704383457482,-1367.02,0.0003315,2]
[310142906,1704383457491,-500.0,0.0003315,2]
[310142907,1704383457501,-6759.03,0.0003315,2]
[310142908,1704383457510,-500.0,0.0003315,2]
[310142909,1704383457520,-2234.12,0.0003315,2]
[310142910,1704383457531,-277.71,0.0003315,2]
[310142911,1704383457541,-7989.34,0.0003315,2]
[310142912,1704383457550,-571.79,0.0003315,2]
[310142913,1704383457560,-886.97,0.0003315,2]
[310142914,1704383457569,-500.0,0.0003315,2]
[310142915,1704383457579,-450.57071683,0.0003315,2]
[310142916,1704383457589,-1134.35,0.0003315,2]
[310142917,1704383457599,-582.52,0.0003315,2]
[310142918,1704383457609,-3268.96,0.0003315,2]
[310142919,1704383457618,-1409.66,0.0003315,2]
[310142920,1704383457628,-500.0,0.0003315,2]
[310142921,1704383457637,-500.0,0.0003315,2]
[310142922,1704383457647,-5952.87,0.0003315,2]
[310142923,1704383457656,-1108.08,0.0003315,2]
[310142924,1704383457666,-734.31,0.0003315,2]
[310142925,1704383457675,-617.19,0.0003315,2]
[310142926,1704383457684,-500.0,0.0003315,2]
[310142927,1704383457693,-500.0,0.0003315,2]
[310142928,1704383457703,-1176.29,0.0003315,2]
[310142929,1704383457713,-500.0,0.0003315,2]
[310142930,1704383457723,-500.0,0.0003315,2]
[310142931,1704383457732,-593.47,0.0003315,2]
[310142932,1704383457742,-3760.93,0.0003315,2]
[310142933,1704383457751,-500.0,0.0003315,2]
[310142934,1704383457761,-2563.17,0.0003315,2]
[310142935,1704383457770,-648.96,0.0003315,2]
[310142936,1704383457780,-735.99,0.0003315,2]
[310142937,1704383457790,-727.54,0.0003315,2]
[310142938,1704383457800,-912.37,0.0003315,2]
[310142939,1704383457811,-1710.93,0.0003315,2]
[310142940,1704383457821,-797.16,0.0003315,2]
[310142941,1704383457830,-500.0,0.0003315,2]
[310142942,1704383457840,-1123.81,0.0003315,2]
[310142943,1704383457850,-500.0,0.0003315,2]
[310142944,1704383457861,-1782.07,0.0003315,2]
[310142945,1704383457870,-3505.81,0.0003315,2]
[310142946,1704383457880,-526.11,0.0003315,2]
[310142947,1704383457889,-6058.41,0.0003315,2]
[310142948,1704383457898,-743.76,0.0003315,2]
[310142949,1704383457907,-813.13,0.0003315,2]
[310142950,1704383457916,-500.0,0.0003315,2]
[310142951,1704383457925,-1111.68,0.0003315,2]
[310142952,1704383457934,-500.0,0.0003315,2]
[310142953,1704383457944,-633.13,0.0003315,2]
[310142954,1704383457954,-2411.49,0.0003315,2]
[310142955,1704383457963,-500.0,0.0003315,2]
[310142956,1704383457973,-500.0,0.0003315,2]
[310142957,1704383457982,-1980.1,0.0003315,2]
[310142958,1704383457992,-766.75,0.0003315,2]
[310142959,1704383458001,-2763.55,0.0003315,2]
[310142960,1704383458011,-1394.66,0.0003315,2]
[310142961,1704383458021,-711.0,0.0003315,2]
[310142962,1704383458030,-500.0,0.0003315,2]
[310142963,1704383458040,-500.0,0.0003315,2]
[310142964,1704383458050,-1787.6,0.0003315,2]
[310142965,1704383458060,-500.0,0.0003315,2]
[310142966,1704383458070,-500.0,0.0003315,2]
[310142967,1704383458079,-1042.72,0.0003315,2]
[310142968,1704383458089,-786.66,0.0003315,2]
[310142969,1704383458107,-500.0,0.0003315,2]
[310142970,1704383458117,-500.0,0.0003315,2]
[310142971,1704383458126,-500.0,0.0003315,2]
[310142972,1704383458135,-739.91,0.0003315,2]
[310142973,1704383458145,-1762.55,0.0003315,2]
[310142974,1704383458154,-500.0,0.0003315,2]
[310142975,1704383458169,-1801.4,0.0003315,2]
[310142976,1704383458183,-587.29,0.0003315,2]
[310142977,1704383458193,-330.01440555,0.0003315,2]
[310142978,1704383458202,-6835.67,0.0003315,2]
[310142979,1704383458212,-600.59909179,0.0003315,2]
[310142980,1704383458222,-2106.94,0.0003315,2]
[310142981,1704383458231,-500.0,0.0003315,2]
[310142982,1704383458240,-690.38,0.0003315,2]
[310142983,1704383458249,-500.0,0.0003315,2]
[310142984,1704383458259,-2355.23,0.0003315,2]
[310142985,1704383458269,-807.14,0.0003315,2]
[310142986,1704383458278,-1766.54,0.0003315,2]
[310142987,1704383458288,-1880.43,0.0003315,2]
[310142988,1704383458297,-500.0,0.0003315,2]
[310142989,1704383458306,-2893.14,0.0003315,2]
[310142990,1704383458315,-23730.97,0.0003315,2]
[310142991,1704383458324,-500.0,0.0003315,2]
[310142992,1704383458333,-500.0,0.0003315,2]
[310142993,1704383458343,-500.0,0.0003315,2]
[310142994,1704383458352,-9423.68,0.0003315,2]
[310142995,1704383458362,-10972.52,0.0003315,2]
[310142996,1704383458371,-553.51,0.0003315,2]
[310142997,1704383458381,-3799.42,0.0003315,2]
[310142998,1704383458390,-24318.36,0.0003315,2]
[310142999,1704383458399,-1932.66,0.0003315,2]
[310143000,1704383458408,-640.95,0.0003315,2]
[310143001,1704383458418,-3015.08,0.0003315,2]
[310143002,1704383458427,-1267.01,0.0003315,2]
[310143003,1704383458436,-500.0,0.0003315,2]
[310143004,1704383458446,-1749.78,0.0003315,2]
[310143005,1704383458455,-500.0,0.0003315,2]
[310143006,1704383458465,-513.45,0.0003315,2]
[310143007,1704383458474,-517.41,0.0003315,2]
[310143008,1704383458483,-500.0,0.0003315,2]
[310143009,1704383458492,-1411.28,0.0003315,2]
[310143010,1704383458502,-1062.95,0.0003315,2]
[310143011,1704383458511,-500.0,0.0003315,2]
[310143012,1704383458520,-500.0,0.0003315,2]
[310143013,1704383458529,-500.0,0.0003315,2]
[310143014,1704383458539,-500.0,0.0003315,2]
[310143015,1704383458548,-500.0,0.0003315,2]
[310143016,1704383458557,-2283.61,0.0003315,2]
[310143017,1704383458567,-3700.77,0.0003315,2]
[310143018,1704383458576,-727.7,0.0003315,2]
[310143019,1704383458586,-5126.0,0.0003315,2]
[310143020,1704383458595,-1211.88,0.0003315,2]
[310143021,1704383458604,-500.0,0.0003315,2]
[310143022,1704383458764,-1230.09,0.0003315,2]
[310143023,1704383458773,-1468.8,0.0003315,2]
[310143024,1704383458782,-1555.26,0.0003315,2]
[310143025,1704383458792,-3590.95,0.0003315,2]
[310143026,1704383458801,-3092.57,0.0003315,2]
[310143027,1704383458810,-500.0,0.0003315,2]
[310143028,1704383458820,-500.0,0.0003315,2]
[310143029,1704383458829,-4974.75,0.0003315,2]
[310143030,1704383458841,-500.0,0.0003315,2]
[310143031,1704383458851,-686.38,0.0003315,2]
[310143032,1704383458860,-2190.23,0.0003315,2]
[310143033,1704383458869,-2624.79,0.0003315,2]
[310143034,1704383458879,-500.0,0.0003315,2]
[310143035,1704383458889,-3516.79,0.0003315,2]
[310143036,1704383458898,-500.0,0.0003315,2]
[310143037,1704383458907,-500.0,0.0003315,2]
[310143038,1704383458917,-6437.83,0.0003315,2]
[310143039,1704383458926,-500.0,0.0003315,2]
[310143040,1704383458936,-948.35,0.0003315,2]
[310143041,1704383458945,-500.0,0.0003315,2]
[310143042,1704383458954,-4606.86,0.0003315,2]
[310143043,1704383458963,-1067.46,0.0003315,2]
[310143044,1704383458973,-706.69,0.0003315,2]
[310143045,1704383458983,-1535.74,0.0003315,2]
[310143046,1704383458992,-2597.4,0.0003315,2]
[310143047,1704383459002,-541.5,0.0003315,2]
[310143048,1704383459012,-759.67,0.0003315,2]
[310143049,1704383459024,-500.0,0.0003315,2]
[310143050,1704383459033,-779.16,0.0003315,2]
[310143051,1704383459043,-1336.23,0.0003336,2]
[310143052,1704383459053,-3525.84,0.0003336,2]
[310143053,1704383459063,-6019.26,0.0003336,2]
[310143054,1704383459073,-3397.48,0.0003336,2]
[310143055,1704383459083,-1947.5,0.0003336,2]
[310143056,1704383459094,-1682.52,0.0003336,2]
[310143057,1704383459103,-1189.91,0.0003336,2]
[310143058,1704383459114,-4784.68,0.0003336,2]
[310143059,1704383459123,-934.89,0.0003336,2]
[310143060,1704383459132,-985.65,0.0003336,2]
[310143061,1704383459142,-1403.95,0.0003336,2]
[310143062,1704383459151,-853.25,0.0003336,2]
[310143063,1704383459161,-1981.92,0.0003336,2]
[310143064,1704383459170,-753.63,0.0003336,2]
[310143065,1704383459179,-1272.31,0.0003336,2]
[310143066,1704383459188,-4520.67,0.0003336,2]
[310143067,1704383459197,-2090.34,0.0003336,2]
[310143068,1704383459206,-500.0,0.0003336,2]
[310143069,1704383459215,-500.0,0.0003336,2]
[310143070,1704383459225,-1472.7,0.0003336,2]
[310143071,1704383459234,-631.14,0.0003336,2]
[310143072,1704383459244,-4890.42084288,0.00033361,2]
[310143073,1704383459254,-1000.0,0.000334,2]
[310143074,1704383459263,-4541.31,0.00033423,2]
[310143075,1704383459274,-155.35492702,0.00033424,2]
[310143076,1704383459284,-500.0,0.00033424,2]
[310143077,1704383459294,-500.0,0.00033424,2]
[310143078,1704383459304,-500.0,0.00033424,2]
[310143079,1704383459314,-500.0,0.00033424,2]
[310143080,1704383459326,-500.0,0.00033424,2]
[310143081,1704383459336,-500.0,0.00033424,2]
[310143082,1704383459347,-500.0,0.00033424,2]
[310143083,1704383459357,-500.0,0.00033424,2]
[310143084,1704383459374,-500.0,0.00033424,2]
[310143085,1704383459384,-500.0,0.00033424,2]
[310143086,1704383459395,-500.0,0.00033424,2]
[310143087,1704383459409,-500.0,0.00033424,2]
[310143088,1704383459419,-500.0,0.00033424,2]
[310143089,1704383459430,-500.0,0.00033424,2]
[310143090,1704383459440,-1581.45,0.00033424,2]
[310143091,1704383459451,-592.65,0.00033424,2]
[310143092,1704383459461,-500.0,0.00033424,2]
[310143093,1704383459471,-500.0,0.00033424,2]
[310143094,1704383459485,-500.0,0.00033424,2]
[310143095,1704383459496,-500.0,0.00033424,2]
[310143096,1704383459507,-820.54,0.00033424,2]
[310143097,1704383459517,-500.0,0.00033424,2]
[310143098,1704383459527,-500.0,0.00033424,2]
[310143099,1704383459538,-445.73,0.00033424,2]
[310143100,1704383459547,-500.0,0.00033424,2]
[310143101,1704383459557,-553.43,0.00033424,2]
[310143102,1704383459568,-500.0,0.00033424,2]
[310143103,1704383459578,-1835.21,0.00033424,2]
[310143104,1704383459588,-500.0,0.00033424,2]
[310143105,1704383459598,-532.57,0.00033424,2]
[310143106,1704383459613,-500.0,0.00033424,2]
[310143107,1704383459623,-558.15,0.00033424,2]
[310143108,1704383459633,-359.35753203,0.00033424,2]
[310143109,1704383459643,-916.08,0.00033424,2]
[310143110,1704383459653,-500.0,0.00033424,2]
[310143111,1704383459662,-500.0,0.00033424,2]
[310143112,1704383459672,-500.0,0.00033424,2]
[310143113,1704383459681,-500.0,0.00033424,2]
[310143114,1704383459690,-1068.71,0.00033424,2]
[310143115,1704383459700,-1645.35,0.00033424,2]
[310143116,1704383459710,-500.0,0.00033424,2]
[310143117,1704383459720,-500.0,0.00033424,2]